fUST/lending_fUST_20260206
["ID","MTS","AMOUNT","RATE_DAILY","PERIOD"]
[404578756,1770308220848,-500.0,0.00014091,2]
[404578757,1770308220875,-500.0,0.00014091,2]
[404578758,1770308220904,-500.0,0.00014091,2]
[404578759,1770308220931,-500.0,0.00014091,2]
[404578760,1770308220960,-500.0,0.00014091,2]
[404578761,1770308220989,-500.0,0.00014091,2]
[404578762,1770308221019,-500.0,0.00014091,2]
[404578763,1770308221055,-500.0,0.00014091,2]
[404578764,1770308221087,-500.0,0.00014091,2]
[404578765,1770308221119,-500.0,0.00014091,2]
[404578766,1770308221147,-500.0,0.00014091,2]
[404578767,1770308221175,-500.0,0.00014091,2]
[404578768,1770308221203,-551.97470019,0.00014091,2]
[404578769,1770308221229,-500.0,0.00014091,2]
[404578770,1770308221253,-154.69369621,0.00014091,2]
[404578771,1770308221287,-500.0,0.00014091,2]
[404578772,1770308221314,-500.0,0.00014091,2]
[404578773,1770308221340,-500.0,0.00014091,2]
[404578774,1770308221367,-500.0,0.00014091,2]
[404578775,1770308221394,-538.93740739,0.00014091,2]
[404578776,1770308221421,-500.0,0.00014091,2]
[404578777,1770308221448,-500.0,0.00014091,2]
[404578778,1770308221475,-500.0,0.00014091,2]
[404578779,1770308221501,-500.0,0.00014091,2]
[404578780,1770308221534,-500.0,0.00014091,2]
[404578781,1770308221562,-500.0,0.00014091,2]
[404578782,1770308221589,-500.0,0.00014091,2]
[404578783,1770308221617,-500.0,0.00014091,2]
[404578784,1770308221644,-500.0,0.00014091,2]
[404578785,1770308221672,-500.0,0.00014091,2]
[404578786,1770308221701,-500.0,0.00014091,2]
[404578787,1770308221729,-500.0,0.00014091,2]
[404578788,1770308221872,-500.0,0.00014091,2]
[404578789,1770308221901,-500.0,0.00014091,2]
[404578790,1770308221929,-300.0,0.00014091,2]
[404578791,1770308221958,-500.0,0.00014091,2]
[404578792,1770308221987,-500.0,0.00014091,2]
[404578793,1770308222016,-500.0,0.00014091,2]
[404578794,1770308222050,-500.0,0.00014091,2]
[404578795,1770308222078,-199.31155567,0.00014091,2]
[404578796,1770308222103,-300.0,0.00014091,2]
[404578797,1770308222127,-77.25891892,0.00014091,2]
[404578798,1770308222216,-222.74108108,0.00014091,2]
[404578799,1770308222241,-300.0,0.00014091,2]
[404578800,1770308222265,-300.0,0.00014091,2]
[404578801,1770308222295,-1200.0,0.00014091,2]
[404578802,1770308222319,-500.0,0.00014092,2]
[404578803,1770308222345,-22477.25891892,0.00014092,2]
[404578804,1770308222437,-25000.0,0.00014092,2]
[404578807,1770308239275,-2522.74108108,0.00014092,2]
[404578808,1770308239307,-1000.0,0.00014247,2]
[404578809,1770308239336,-500.0,0.00014366,2]
[404578810,1770308239364,-300.0,0.00014374,2]
[404578811,1770308239392,-300.0,0.00014374,2]
[404578812,1770308239419,-300.0,0.00014374,2]
[404578813,1770308239446,-300.0,0.00014374,2]
[404578814,1770308239472,-300.0,0.00014374,2]
[404578815,1770308239498,-300.0,0.00014374,2]
[404578816,1770308239526,-300.0,0.00014374,2]
[404578817,1770308239561,-300.0,0.00014374,2]
[404578818,1770308239590,-300.0,0.00014374,2]
[404578819,1770308239618,-300.0,0.00014374,2]
[404578820,1770308239646,-300.0,0.00014374,2]
[404578821,1770308239675,-300.0,0.00014374,2]
[404578822,1770308239703,-300.0,0.00014374,2]
[404578823,1770308239731,-300.0,0.00014374,2]
[404578824,1770308239759,-300.0,0.00014374,2]
[404578825,1770308239791,-600.0,0.00014374,2]
[404578826,1770308243438,-558.84864658,0.0001464,2]
[404578827,1770308243464,-1242.42658272,0.00014795,2]
[404578829,1770308260950,3429.46227773,0.00013,2]
[404578874,1770308564294,710.0,0.00030137,120]
[404578885,1770308734839,-1200.0,0.00015341,2]
[404578886,1770308734866,-8800.0,0.00015342,2]
[404578887,1770308735611,-1200.0,0.00015342,2]
[404578888,1770308735643,-300.0,0.00015388,2]
[404578889,1770308735675,-300.0,0.00015388,2]
[404578890,1770308735709,-150.0,0.00015389,2]
[404578891,1770308735741,-2754.14001932,0.00015436,2]
[404578892,1770308735773,-643.0,0.00015436,2]
[404578893,1770308735810,-174.10910272,0.00015766,2]
[404578894,1770308739671,-300.0,0.00016242,2]
[404578895,1770308739702,-300.0,0.00016242,2]
[404578896,1770308739733,-300.0,0.00016242,2]
[404578897,1770308739763,-300.0,0.00016242,2]
[404578898,1770308739798,-300.0,0.00016242,2]
[404578899,1770308739829,-300.0,0.00016242,2]
[404578900,1770308739860,-300.0,0.00016242,2]
[404578901,1770308739891,-300.0,0.00016242,2]
[404578902,1770308739921,-300.0,0.00016242,2]
[404578903,1770308739950,-300.0,0.00016242,2]
[404578904,1770308739981,-300.0,0.00016242,2]
[404578905,1770308740011,-300.0,0.00016242,2]
[404578906,1770308740040,-300.0,0.00016242,2]
[404578907,1770308740071,-300.0,0.00016242,2]
[404578908,1770308740101,-300.0,0.00016242,2]
[404578909,1770308743582,-600.0,0.00016566,2]
[404578910,1770308743764,-7719.55733019,0.000166,2]
[404578911,1770308746628,-177.0,0.00017389,2]
[404578912,1770308750809,-270.57462295,0.00018,2]
[404578918,1770308768488,-720.0,0.00018222,2]
[404578919,1770308772240,-323.52197542,0.0001852,2]
[404578920,1770308772272,-2985.08755839,0.00018607,2]
[404578921,1770308772311,-500.0,0.00018661,2]
[404578922,1770308772348,-481.09216501,0.00018661,2]
[404578923,1770308772388,-500.0,0.00018661,2]
[404578924,1770308772424,-500.0,0.00018661,2]
[404578925,1770308772458,-500.0,0.00018661,2]
[404578926,1770308772496,-500.0,0.00018661,2]
[404578927,1770308772532,-227.99718891,0.00018661,2]
[404578928,1770308772572,-500.0,0.00018661,2]
[404578929,1770308772610,-455.43748971,0.00018661,2]
[404578930,1770308772869,-399.72723956,0.00018661,2]
[404578931,1770308772903,-2127.136383,0.00018663,2]
[404578932,1770308775547,-2728.56707495,0.00018663,2]
[404578933,1770308775579,-204.0,0.00019389,2]
[404578969,1770308873684,10000.0,0.00012,5]
[404578970,1770308873712,7067.43292505,0.00012,5]
[404578971,1770308873739,3275.94741812,0.00012,5]
[404578973,1770308892789,188.0,0.0002,120]
[404578974,1770308922822,249.0,0.0002,120]
[404579015,1770309032327,-14164.39767715,0.0002,2]
[404579017,1770309032340,-1385.50233932,0.0002,7]
[404579019,1770309032349,-721.0,0.0002,2]
[404579021,1770309032359,-4072.86677899,0.0002009,2]
[404579058,1770309039076,-322.56416287,0.000199,2]
[404579059,1770309039086,-3165.84700788,0.0002009,2]
[404579060,1770309039096,-1303.63536033,0.0002022,59]
[404579061,1770309039106,-300.0,0.00020399,2]
[404579062,1770309039116,-300.0,0.00020399,2]
[404579063,1770309039125,-300.0,0.00020399,2]
[404579064,1770309039136,-300.0,0.00020399,2]
[404579065,1770309039145,-300.0,0.00020399,2]
[404579066,1770309039155,-300.0,0.00020399,2]
[404579067,1770309039165,-300.0,0.00020399,2]
[404579068,1770309039175,-300.0,0.00020399,2]
[404579070,1770309039185,-300.0,0.00020399,2]
[404579072,1770309039196,-300.0,0.00020399,2]
[404579074,1770309039205,-300.0,0.00020399,2]
[404579076,1770309039215,-300.0,0.00020399,2]
[404579077,1770309039225,-300.0,0.00020399,2]
[404579078,1770309039234,-300.0,0.00020399,2]
[404579079,1770309039247,-300.0,0.00020399,2]
[404579080,1770309039260,-824.339935,0.00020511,2]
[404579081,1770309039270,-231.84623028,0.00020865,2]
[404579082,1770309039280,-582.33955575,0.00021219,2]
[404579083,1770309039290,-824.339935,0.00021375,2]
[404579084,1770309039302,-203.0,0.00021918,45]
[404579085,1770309039312,-824.339935,0.00022238,2]
[404579086,1770309039323,-313.3963849,0.00022469,2]
[404579087,1770309039333,-824.339935,0.00023102,2]
[404579088,1770309039343,-1445.44869461,0.00023517,2]
[404579089,1770309039353,-1035.27032134,0.00023918,2]
[404579090,1770309039363,-824.339935,0.00023965,2]
[404579091,1770309039373,-380.0,0.00024658,2]
[404579092,1770309039383,-2611.9516136,0.00024729,2]
[404579093,1770309039393,-824.339935,0.00024829,2]
[404579094,1770309039403,-1214.52956722,0.0002493,2]
[404579095,1770309039413,-6203.12,0.0002499,10]
[404579096,1770309039422,-326096.33815767,0.00025,30]
[404579097,1770309039432,-185.19,0.00025,7]
[404579098,1770309039441,-600.0,0.0002515,10]
[404579099,1770309039451,-582.51528868,0.000252,5]
[404579100,1770309039460,-557.14912871,0.00025977,2]
[404579101,1770309039469,-161.0,0.00026,5]
[404579102,1770309039479,-1803.52158846,0.00026495,2]
[404579103,1770309039489,-1617.60987709,0.00026617,2]
[404579104,1770309039503,-720.0,0.00027665,30]
[404579105,1770309039512,-1000.0,0.00027777,5]
[404579106,1770309039522,-200406.33843642,0.00028,30]
[404579107,1770309039532,-1828.79379445,0.000281,7]
[404579108,1770309039541,-42598.46868498,0.000285,7]
[404579109,1770309039551,-741.26793723,0.000285,7]
[404579110,1770309039561,-5818.24401517,0.0002876,30]
[404579111,1770309039571,-173.17304942,0.000288,7]
[404579112,1770309039581,-365.33831071,0.00029882,2]
[404579113,1770309039591,-165.46,0.0003,5]
[404579114,1770309039600,-2988.10279937,0.0003,7]
[404579115,1770309039610,-500.0,0.00030137,7]
[404579116,1770309039620,-500.0,0.00030137,10]
[404579117,1770309039629,-429.17,0.00030137,10]
[404579118,1770309039639,-741.26793723,0.00030137,7]
[404579119,1770309039648,-177.92730987,0.00030181,10]
[404579120,1770309039657,-864.0,0.00030431,30]
[404579121,1770309039667,-306.8690357,0.0003099,2]
[404579122,1770309039676,-7514.3069195,0.00031497,2]
[404579123,1770309039685,-1131.0,0.000315,5]
[404579124,1770309039695,-250.0,0.00031604,2]
[404579125,1770309039704,-201.93286099,0.00031604,2]
[404579126,1770309039714,-250.0,0.00031604,2]
[404579127,1770309039724,-872.49793686,0.00031604,2]
[404579128,1770309039733,-209.40437684,0.00031604,2]
[404579129,1770309039742,-250.0,0.00031604,2]
[404579130,1770309039755,-217.15233878,0.00031604,2]
[404579131,1770309039765,-250.0,0.00031604,2]
[404579132,1770309039776,-225.18697532,0.00031604,2]
[404579133,1770309039785,-250.0,0.00031604,2]
[404579134,1770309039795,-250.0,0.00031604,2]
[404579135,1770309039805,-233.51889341,0.00031604,2]
[404579136,1770309039814,-151.0,0.00031604,2]
[404579137,1770309039824,-250.0,0.00031604,2]
[404579138,1770309039834,-250.0,0.00031604,2]
[404579139,1770309039844,-242.15909246,0.00031604,2]
[404579140,1770309039854,-250.0,0.00031604,2]
[404579141,1770309039863,-250.0,0.00031604,2]
[404579142,1770309039873,-2000.0,0.00031604,2]
[404579143,1770309039883,-250.0,0.00031604,2]
[404579144,1770309039893,-251.11897888,0.00031604,2]
[404579145,1770309039904,-250.0,0.00031604,2]
[404579146,1770309039915,-2000.0,0.00031604,2]
[404579147,1770309039924,-250.0,0.00031604,2]
[404579148,1770309039934,-500.0,0.00031604,2]
[404579149,1770309039944,-260.4103811,0.00031604,2]
[404579150,1770309039954,-250.0,0.00031604,2]
[404579151,1770309039964,-2000.0,0.00031604,2]
[404579152,1770309039974,-250.0,0.00031604,2]
[404579153,1770309039984,-500.0,0.00031604,2]
[404579154,1770309039994,-270.0455652,0.00031604,2]
[404579155,1770309040008,-250.0,0.00031604,2]
[404579157,1770309040018,-2000.0,0.00031604,2]
[404579158,1770309040028,-250.0,0.00031604,2]
[404579159,1770309040038,-221.90600088,0.00031604,2]
[404579160,1770309040047,-250.0,0.00031604,2]
[404579161,1770309040056,-280.03725112,0.00031604,2]
[404579162,1770309040066,-250.0,0.00031604,2]
[404579163,1770309040076,-2000.0,0.00031604,2]
[404579164,1770309040086,-250.0,0.00031604,2]
[404579165,1770309040096,-250.0,0.00031604,2]
[404579166,1770309040107,-290.39862941,0.00031604,2]
[404579167,1770309040117,-250.0,0.00031604,2]
[404579168,1770309040127,-2000.0,0.00031604,2]
[404579169,1770309040136,-250.0,0.00031604,2]
[404579170,1770309040146,-250.0,0.00031604,2]
[404579171,1770309040156,-301.1433787,0.00031604,2]
[404579172,1770309040166,-250.0,0.00031604,2]
[404579173,1770309040176,-2000.0,0.00031604,2]
[404579174,1770309040186,-250.0,0.00031604,2]
[404579175,1770309040196,-250.0,0.00031604,2]
[404579176,1770309040206,-2000.0,0.00031604,2]
[404579177,1770309040215,-250.0,0.00031604,2]
[404579178,1770309040226,-250.0,0.00031604,2]
[404579179,1770309040236,-2000.0,0.00031604,2]
[404579180,1770309040250,-250.0,0.00031604,2]
[404579182,1770309040397,-250.0,0.00031604,2]
[404579183,1770309040407,-2000.0,0.00031604,2]
[404579184,1770309040417,-250.0,0.00031604,2]
[404579185,1770309040427,-2000.0,0.00031604,2]
[404579186,1770309040436,-250.0,0.00031604,2]
[404579187,1770309040446,-2000.0,0.00031604,2]
[404579188,1770309040455,-500.0,0.00031604,2]
[404579189,1770309040465,-250.0,0.00031604,2]
[404579190,1770309040475,-2000.0,0.00031604,2]
[404579191,1770309040484,-250.0,0.00031604,2]
[404579192,1770309040494,-2000.0,0.00031604,2]
[404579193,1770309040509,-250.0,0.00031604,2]
[404579194,1770309040519,-2000.0,0.00031604,2]
[404579196,1770309040528,-250.0,0.00031604,2]
[404579198,1770309040538,-250.0,0.00031604,2]
[404579200,1770309040548,-1000.0,0.00031604,2]
[404579202,1770309040557,-1000.0,0.00031604,2]
[404579204,1770309040566,-1000.0,0.00031604,2]
[404579206,1770309040577,-1000.0,0.00031604,2]
[404579208,1770309040586,-1000.0,0.00031604,2]
[404579210,1770309040596,-1000.0,0.00031604,2]
[404579212,1770309040605,-1000.0,0.00031604,2]
[404579214,1770309040615,-1000.0,0.00031604,2]
[404579216,1770309040625,-1000.0,0.00031604,2]
[404579218,1770309040634,-204.16,0.00031644,30]
[404579220,1770309040644,-499.30277234,0.0003175,2]
[404579222,1770309040653,-201.18892114,0.00032,2]
[404579224,1770309040663,-152.00917047,0.00032,120]
[404579226,1770309040673,-381.567,0.00032599,33]
[404579228,1770309040683,-562.57883454,0.00032867,2]
[404579230,1770309040694,-741.26793723,0.00032877,7]
[404579232,1770309040703,-3289.66,0.000329,14]
[404579234,1770309040714,-14916.90068735,0.00033,120]
[404579236,1770309040724,-204.16,0.00033151,30]
[404579238,1770309040734,-281.28941727,0.00033226,2]
[404579240,1770309040744,-2783.04392664,0.0003333,10]
[404579242,1770309040761,-243.73830994,0.00033333,3]
[404579244,1770309040771,-1000.0,0.00033474,30]
[404579246,1770309040781,-156.28,0.000341,30]
[404579248,1770309040791,-741.26793723,0.00034427,2]
[404579250,1770309040801,-1041.66666667,0.00034427,2]
[404579252,1770309040811,-480.79759264,0.000345,120]
[404579254,1770309040820,-39475.14397827,0.0003479,5]
[404579256,1770309040831,-499.30277234,0.000348,2]
[404579258,1770309040840,-2659.50610129,0.00035,120]
[404579259,1770309040850,-2631.82140146,0.00035,5]
[404579261,1770309040860,-281.28941727,0.000353,2]
[404579263,1770309040870,-3289.66,0.000354,14]
[404579264,1770309040880,-2611.95161358,0.00035468,2]
[404579266,1770309040891,-2456.89681348,0.00036,30]
[404579268,1770309040901,-7238.71378687,0.00036642,2]
[404579270,1770309040912,-1000.0,0.00036822,30]
[404579272,1770309040922,-244.0,0.00036822,30]
[404579274,1770309040932,-1846.924045,0.00037742,60]
[404579276,1770309040942,-2055.752162,0.00037742,60]
[404579278,1770309040952,-1302.73332224,0.00038655,11]
[404579280,1770309040962,-2873.69595258,0.000389,3]
[404579282,1770309040972,-750.839588,0.00039,120]
[404579284,1770309040982,-18427.65098806,0.0003956,2]
[404579286,1770309040992,-2041.67987083,0.00039728,120]
[404579288,1770309041015,-250.0,0.00039728,10]
[404579290,1770309041025,-250.0,0.00039728,10]
[404579292,1770309041035,-250.0,0.00039728,10]
[404579294,1770309041044,-352.102841,0.00039728,10]
[404579296,1770309041053,-28040.8,0.00039728,7]
[404579298,1770309041063,-1040.14312294,0.00039728,120]
[404579300,1770309041073,-1575.1567345,0.00039728,7]
[404579302,1770309041083,-1022.61439736,0.00039728,30]
[404579304,1770309041096,-152.86315677,0.00039728,120]
[404579306,1770309041106,-229.940455,0.00039728,30]
[404579308,1770309041115,-304.72415004,0.00039728,30]
[404579310,1770309041125,-300.0,0.00039728,2]
[404579312,1770309041134,-159.95770398,0.00039728,60]
[404579314,1770309041144,-18512.88855886,0.00039728,2]
[404579316,1770309041154,-1475.39893205,0.00039728,60]
[404579318,1770309041163,-1298.09845923,0.00039728,35]
[404579320,1770309041173,-162.05082949,0.00039728,120]
[404579322,1770309041182,-244.79722189,0.00039728,10]
[404579324,1770309041192,-203.2270395,0.00039728,120]
[404579326,1770309041202,-165.47085185,0.00039728,30]
[404579328,1770309041210,-197.99859174,0.00039728,12]
[404579330,1770309041220,-167.25602892,0.00039728,30]
[404579332,1770309041228,-824.01948186,0.00039728,120]
[404579334,1770309041238,-201.94780083,0.00039728,120]
[404579336,1770309041251,-261.61810529,0.00039728,31]
[404579338,1770309041260,-179.57944477,0.00039728,30]
[404579340,1770309041273,-162.24445234,0.00039728,30]
[404579342,1770309041282,-299.31614309,0.00039728,2]
[404579344,1770309041292,-975.17622445,0.00039728,120]
[404579346,1770309041302,-527.24527272,0.00039728,120]
[404579347,1770309041311,-401.26815131,0.00039728,7]
[404579349,1770309041321,-1165.60152257,0.00039728,120]
[404579351,1770309041330,-200.0,0.00039728,10]
[404579353,1770309041341,-498.0,0.00039728,7]
[404579355,1770309041351,-325.14967276,0.00039728,120]
[404579357,1770309041360,-213.02683704,0.00039728,120]
[404579359,1770309041370,-159.58449368,0.00039728,120]
[404579361,1770309041381,-259.56156764,0.00039728,60]
[404579363,1770309041390,-1467.47669785,0.00039728,30]
[404579365,1770309041400,-156.64094527,0.00039728,7]
[404579368,1770309041410,-406.35272629,0.00039728,60]
[404579370,1770309041419,-827.63543782,0.00039728,15]
[404579371,1770309041428,-913.80046438,0.00039728,30]
[404579373,1770309041437,-1000.00344061,0.00039728,120]
[404579375,1770309041446,-10204.33778436,0.00039728,30]
[404579377,1770309041455,-432.22945664,0.00039728,120]
[404579379,1770309041464,-33365.80407784,0.00039728,2]
[404579381,1770309041474,-179.13174784,0.00039728,7]
[404579383,1770309041484,-222.94014253,0.00039728,30]
[404579385,1770309041494,-158.0,0.00039728,10]
[404579387,1770309041507,-344.22796065,0.00039728,10]
[404579389,1770309041516,-352.85885311,0.00039728,30]
[404579391,1770309041525,-6236.02717255,0.00039728,30]
[404579393,1770309041535,-18286.28466098,0.00039728,20]
[404579395,1770309041545,-215.04245467,0.00039728,30]
[404579397,1770309041554,-336.60072549,0.00039728,33]
[404579398,1770309041563,-214.88725439,0.00039728,31]
[404579400,1770309041572,-245.55053783,0.00039728,10]
[404579402,1770309041581,-150.0,0.00039728,7]
[404579404,1770309041590,-1430.475468,0.00039728,30]
[404579408,1770309041611,-6532.64988852,0.00039728,21]
[404579410,1770309041622,-2757.39116684,0.0003979,2]
[404579412,1770309041632,-3289.66,0.000398,14]
[404579414,1770309041642,-1607.0257669,0.000398,120]
[404579416,1770309041652,-8737.42136228,0.000399,120]
[404579418,1770309041661,-1000.0,0.00040504,60]
[404579420,1770309041671,-492.0,0.00040504,60]
[404579422,1770309041681,-793.77,0.00041096,120]
[404579424,1770309041691,-200.76273166,0.00041096,31]
[404579426,1770309041701,-156.28,0.000413,30]
[404579428,1770309041711,-200.0,0.00041503,120]
[404579430,1770309041721,-1000.0,0.00044554,60]
[404579432,1770309041731,-791.0,0.00044554,60]
[404579434,1770309041740,-6402.74693584,0.00045,120]
[404579436,1770309041753,-204.16,0.00045205,60]
[404579437,1770309041763,-2611.95161358,0.00046206,28]
[404579438,1770309041773,-500.0,0.00046763,17]
[404579439,1770309041783,-200.0,0.00046999,120]
[404579440,1770309041792,-3511.02,0.00047461,15]
[404579441,1770309041802,-500.0,0.00047722,60]
[404579442,1770309041812,-3289.66,0.000478,14]
[404579443,1770309041822,-500.0,0.00048331,60]
[404579444,1770309041832,-200.0,0.00048678,15]
[404579445,1770309041843,-1000.0,0.0004901,120]
[404579446,1770309041853,-1000.0,0.0004901,120]
[404579447,1770309041863,-150.0,0.00049064,60]
[404579448,1770309041874,-847.058868,0.00049064,60]
[404579449,1770309041884,-1544.117737,0.00049064,60]
[404579450,1770309041895,-2241.176606,0.00049064,60]
[404579451,1770309041905,-2938.235474,0.00049064,60]
[404579452,1770309041915,-3635.294343,0.00049064,60]
[404579453,1770309041925,-4332.353212,0.00049064,60]
[404579454,1770309041935,-5029.41208,0.00049064,60]
[404579455,1770309041945,-5726.470949,0.00049064,60]
[404579456,1770309041955,-6423.529818,0.00049064,60]
[404579457,1770309041965,-188.815904,0.00049064,60]
[404579458,1770309041975,-152.277937,0.00049064,60]
[404579459,1770309041984,-150.0,0.00049064,60]
[404579460,1770309041994,-333.237475,0.00049064,60]
[404579461,1770309042007,-516.47495,0.00049064,60]
[404579462,1770309042017,-281.28941727,0.00049896,4]
[404579464,1770309042026,-154.0,0.0005,120]
[404579465,1770309042036,-495.47206185,0.0005,30]
[404579467,1770309042046,-18996.22568959,0.0005,120]
[404579470,1770309042066,-62366.5351372,0.0005,120]
[404579472,1770309042076,-153.47,0.00050136,30]
[404579474,1770309042085,-709.980326,0.00050232,60]
[404579475,1770309042094,-500.0,0.00050248,120]
[404579476,1770309042104,-261.38,0.00050521,15]
[404579477,1770309042113,-153.47,0.00050821,32]
[404579478,1770309042123,-156.28,0.00051,30]
[404579479,1770309042132,-861.38,0.00051206,15]
[404579480,1770309042142,-153.47,0.00051506,34]
[404579481,1770309042152,-500.0,0.00051557,120]
[404579482,1770309042161,-1041.66666667,0.00051847,120]
[404579483,1770309042171,-154.0,0.000519,120]
[404579485,1770309042180,-381.567,0.0005195,94]
[404579487,1770309042190,-153.47,0.00052191,36]
[404579489,1770309042199,-589.25366969,0.00052576,15]
[404579491,1770309042211,-482.24165179,0.00052576,15]
[404579494,1770309042334,-1000.0,0.00031604,2]
[404579495,1770309042345,-1000.0,0.00031604,2]
[404579496,1770309042355,-1000.0,0.00031604,2]
[404579497,1770309042365,-699.712425,0.00049064,60]
[404579498,1770309042374,-882.9499,0.00049064,60]
[404579499,1770309042384,-1066.187375,0.00049064,60]
[404579500,1770309042393,-105.87467852,0.00052576,15]
[404579501,1770309042403,-153.47,0.00052876,38]
[404579502,1770309042413,-546.42,0.00053261,15]
[404579503,1770309042422,-153.47,0.00053561,40]
[404579504,1770309042433,-154.0,0.000539,120]
[404579505,1770309042442,-1000.0,0.00053911,120]
[404579506,1770309042453,-1000.0,0.00053911,120]
[404579507,1770309042462,-579.0,0.00053911,120]
[404579508,1770309042472,-7706.31373081,0.00053941,15]
[404579509,1770309042490,-13642.4,0.00053941,15]
[404579510,1770309042506,-1318.6555726,0.00053941,15]
[404579511,1770309042519,-2666.67145955,0.00053941,15]
[404579512,1770309042531,-3502.94299894,0.00053941,15]
[404579593,1770309047264,-741.26793723,0.00032877,7]
[404579595,1770309047273,-2810.71406277,0.00049054,10]
[404579602,1770309047443,-2317.81306071,0.00049054,10]
[404579603,1770309047455,-4556.61287652,0.00049054,10]
[404579604,1770309047465,-1249.42485,0.00049064,60]
[404579605,1770309047474,-1432.662325,0.00049064,60]
[404579606,1770309047483,-1615.8998,0.00049064,60]
[404579607,1770309047493,-1799.137276,0.00049064,60]
[404579608,1770309047510,-4717.61897274,0.00053941,15]
[404579609,1770309047522,-602.605739,0.00053941,15]
[404579613,1770309048988,-741.26793723,0.000398,7]
[404579614,1770309048998,-16326.71152636,0.00053941,15]
[404579615,1770309049014,-2506.254958,0.00053972,120]
[404579616,1770309049024,-51192.54722683,0.00054,120]
[404579617,1770309049036,-4954.46166479,0.00054,120]
[404579618,1770309049047,-2400.71478538,0.00054,120]
[404579619,1770309049058,-16271.96194694,0.00054,120]
[404579621,1770309049069,-567.6937,0.00054,120]
[404579622,1770309068622,500.0,0.00013699,2]
[404579623,1770309068815,500.0,0.00013699,2]
[404579624,1770309075498,500.20077682,0.00013699,2]
[404579625,1770309077848,509.35129804,0.00013699,2]
[404579626,1770309079104,532.14555202,0.00013699,2]
[404579627,1770309079357,500.0,0.00013699,2]
[404579628,1770309080579,500.0,0.00013699,2]
[404579629,1770309080958,500.0,0.00013699,2]
[404579630,1770309081086,470.30689096,0.00013273,2]
[404579631,1770309081145,500.0,0.00013699,2]
[404579632,1770309081182,500.0,0.00013699,2]
[404579633,1770309081239,485.91457631,0.00013699,2]
[404579634,1770309081736,6.13348773,0.00013699,2]
[404579635,1770309081762,493.86651227,0.00013699,2]
[404579636,1770309081913,500.0,0.00013699,2]
[404579637,1770309082335,500.0,0.00013699,2]
[404579639,1770309125735,500.0,0.00013699,2]
[404579640,1770309127077,422.13878715,0.00013699,2]
[404579641,1770309127120,177.23024464,0.00013699,2]
[404579642,1770309127149,322.76975536,0.00013699,2]
[404579643,1770309127181,500.0,0.00014247,2]
[404579644,1770309127377,591.06797189,0.00013699,2]
[404579645,1770309127691,500.0,0.00013273,2]
[404579646,1770309127749,500.0,0.00013821,2]
[404579647,1770309130729,500.0,0.00013699,2]
[404579648,1770309131577,501.63013071,0.00013699,2]
[404579649,1770309133722,500.0,0.00013699,2]
[404579650,1770309134685,500.0,0.00013699,2]
[404579651,1770309135998,500.0,0.00013699,2]
[404579652,1770309137034,502.26914519,0.00013699,2]
[404579653,1770309137946,501.17154116,0.00013699,2]
[404579676,1770309184450,500.0,0.00013273,2]
[404579677,1770309184512,576.06117804,0.00013821,2]
[404579678,1770309185254,500.0,0.00013273,2]
[404579679,1770309185303,500.0,0.00013821,2]
[404579700,1770309426832,240.58914243,0.00013273,2]
[404579701,1770309426859,259.41085757,0.00013273,2]
[404579702,1770309426890,500.0,0.00013821,2]
[404579703,1770309480632,232.82,9.99e-05,30]
[404579704,1770309480944,232.82,9.99e-05,30]